[Event "46th GRE-chT Premier 2018"]
[Site "Rio Achaia"]
[Date "2018.07.10"]
[Round "1"]
[White "Skalkotas, Nikolaos"]
[Black "Leniart, Arkadiusz"]
[Result "0-1"]
[ECO "E10"]
[WhiteElo "2044"]
[BlackElo "2489"]
[Annotator "ChessBase"]
[PlyCount "74"]
[EventDate "2018.07.10"]
[EventType "team-tourn"]
[EventCountry "GRE"]
[SourceTitle "playchess.com"]
[Source "ChessBase"]
[SourceQuality "1"]
[TimeControl "40/5400+30:1800+30"]

1. d4 {[%emt 0:00:00]} Nf6 {[%emt 0:00:00]} 2. c4 {[%emt 0:00:00]} e6 {[%emt 0:00:00]} 3. Nf3 {[%emt 0:00:49]} d5 4. g3 {[%emt 0:01:02]} Nbd7 {[%emt 0:00:06]} 5. Bg2 {[%emt 0:02:21]} dxc4 {[%emt 0:00:06]} 6. O-O {[%emt 0:00:05]} Rb8 {[%emt 0:05:06]} 7. Qc2 {[%emt 0:07:31]} b5 {[%emt 0:01:58]} 8. e4 {[%emt 0:00:11]} Bb7 {[%emt 0:02:33]} 9. Re1 {[%emt 0:00:05]} c5 {[%emt 0:11:49]} 10. d5 {[%emt 0:02:52]} e5 {[%emt 0:01:00]} 11. Nc3 {[%emt 0:06:34]} Qb6 {[%emt 0:05:42]} 12. a4 {[%emt 0:08:07]} a6 {[%emt 0:00:14]} 13. a5 {[%emt 0:00:08]} Qd8 {[%emt 0:00:05]} 14. Nh4 {[%emt 0:00:40]} g6 {[%emt 0:01:07]} 15. f4 {[%emt 0:01:41]} Bd6 {[%emt 0:01:58]} 16. Bd2 {[%emt 0:02:30]} Qc7 {[%emt 0:05:38]} 17. Rf1 {[%emt 0:16:25]} O-O {[%emt 0:04:59]} 18. f5 {[%emt 0:00:08]} b4 {[%emt 0:00:41]} 19. Nd1 {[%emt 0:03:54]} c3 {[%emt 0:00:18]} 20. bxc3 b3 {[%emt 0:00:05]} 21. Qxb3 {[%emt 0:00:42]} Bxd5 {[%emt 0:00:18]} 22. Qc2 {[%emt 0:00:26]} Bc4 {[%emt 0:03:37]} 23. Ne3 {[%emt 0:02:58]} Bxf1 {[%emt 0:01:05]} 24. Bxf1 {[%emt 0:00:02]} Qc6 {[%emt 0:03:12]} 25. Nc4 {[%emt 0:20:26]} Qxe4 {[%emt 0:08:56]} 26. Qxe4 {[%emt 0:00:58]} Nxe4 {[%emt 0:00:07]} 27. Bh6 {[%emt 0:00:13]} Rfd8 {[%emt 0:02:09]} 28. Re1 {[%emt 0:07:44]} Ndf6 {[%emt 0:01:06]} 29. Nb6 {[%emt 0:00:50]} Bc7 {[%emt 0:01:47]} 30. fxg6 {[%emt 0:01:27]} hxg6 {[%emt 0:01:04]} 31. Bxa6 {[%emt 0:02:55]} Bxb6 {[%emt 0:00:07]} 32. axb6 {[%emt 0:00:04]} Rxb6 {[%emt 0:00:10]} 33. Bc4 {[%emt 0:00:07]} Nd2 {[%emt 0:01:39]} 34. Bxd2 {[%emt 0:04:48]} Rxd2 {[%emt 0:00:18]} 35. Nf3 {[%emt 0:01:35]} Rc2 {[%emt 0:01:23]} 36. Nxe5 {[%emt 0:01:06]} Rbb2 {[%emt 0:01:27]} 37. Bxf7+ {[%emt 0:01:39]} Kg7 {[%emt 0:00:37]} 0-1

[Event "46th GRE-chT Premier 2018"]
[Site "Rio Achaia"]
[Date "2018.07.10"]
[Round "1"]
[White "Kostas, Panagiotis"]
[Black "Manelidou, Maria"]
[Result "1-0"]
[ECO "D01"]
[WhiteElo "2041"]
[BlackElo "2078"]
[Annotator "NA"]
[PlyCount "33"]
[EventDate "2018.07.10"]
[EventType "team-tourn"]
[EventCountry "GRE"]
[SourceTitle "playchess.com"]
[Source "ChessBase"]
[SourceQuality "1"]
[TimeControl "40/5400+30:1800+30"]

1. d4 {[%emt 0:00:00]} d5 {[%emt 0:00:00]} 2. Nc3 {[%emt 0:00:00]} Nf6 {[%emt 0:00:08]} 3. Bg5 {[%emt 0:00:00]} h6 {[%emt 0:00:21]} 4. Bh4 {[%emt 0:00:16]} Bf5 {[%emt 0:02:59]} 5. e3 {[%emt 0:00:31]} c6 {[%emt 0:01:06]} 6. Bd3 {[%emt 0:00:52]} Bxd3 {[%emt 0:02:55]} 7. Qxd3 {[%emt 0:06:57]} Nbd7 {[%emt 0:05:28]} 8. Nf3 {[%emt 0:00:16]} e6 {[%emt 0:02:04]} 9. e4 {[%emt 0:14:09]} dxe4 {[%emt 0:12:17]} 10. Nxe4 {[%emt 0:00:14]} Be7 {[%emt 0:00:34]} 11. Nxf6+ {[%emt 0:09:34]} Nxf6 {[%emt 0:06:11]} 12. Qb3 {[%emt 0:09:20]} Nh5 {[%emt 0:09:48]} 13. Qxb7 {[%emt 0:05:49]} Bxh4 {[%emt 0:18:33]} 14. Qxc6+ {[%emt 0:00:15]} Kf8 {[%emt 0:00:38]} 15. Qc5+ {[%emt 0:02:27]} Be7 {[%emt 0:01:56]} 16. Qxh5 {[%emt 0:00:08]} Qb6 {[%emt 0:00:55]} 17. Ne5 {[%emt 0:01:27]} 1-0

[Event "46th GRE-chT Premier 2018"]
[Site "Rio Achaia"]
[Date "2018.07.10"]
[Round "1"]
[White "Gkogkas, Dimitrios"]
[Black "Benatsis, Alexandros"]
[Result "1/2-1/2"]
[ECO "D02"]
[WhiteElo "2038"]
[BlackElo "1669"]
[Annotator "NA"]
[PlyCount "98"]
[EventDate "2018.07.10"]
[EventType "team-tourn"]
[EventCountry "GRE"]
[SourceTitle "playchess.com"]
[Source "ChessBase"]
[SourceQuality "1"]
[TimeControl "40/5400+30:1800+30"]

1. d4 {[%emt 0:05:56]} Nf6 {[%emt 0:00:00]} 2. Bf4 {[%emt 0:00:53]} d5 {[%emt 0:01:13]} 3. Nf3 {[%emt 0:00:19]} c5 {[%emt 0:00:36]} 4. c3 {[%emt 0:01:37]} Qb6 {[%emt 0:02:00]} 5. Qb3 {[%emt 0:00:48]} c4 {[%emt 0:00:15]} 6. Qxb6 {[%emt 0:03:49]} axb6 {[%emt 0:00:11]} 7. e3 {[%emt 0:00:31]} Nc6 {[%emt 0:00:23]} 8. Na3 {[%emt 0:07:45]} Na7 {[%emt 0:04:50]} 9. Nc2 {[%emt 0:04:17]} Bf5 {[%emt 0:01:56]} 10. Nb4 {[%emt 0:04:51]} e6 {[%emt 0:03:29]} 11. a3 {[%emt 0:07:34]} Nc6 {[%emt 0:08:08]} 12. Nxc6 {[%emt 0:03:31]} bxc6 {[%emt 0:00:08]} 13. Ne5 {[%emt 0:08:38]} c5 {[%emt 0:02:08]} 14. f3 {[%emt 0:00:11]} b5 {[%emt 0:07:44]} 15. g4 {[%emt 0:01:57]} Bc2 {[%emt 0:01:17]} 16. Kd2 {[%emt 0:01:20]} Bb3 {[%emt 0:04:23]} 17. h4 {[%emt 0:04:12]} b4 {[%emt 0:02:10]} 18. Be2 {[%emt 0:07:06]} bxa3 {[%emt 0:05:20]} 19. Rxa3 {[%emt 0:00:41]} Rxa3 {[%emt 0:00:17]} 20. bxa3 {[%emt 0:00:01]} cxd4 {[%emt 0:02:06]} 21. exd4 {[%emt 0:01:23]} Nd7 {[%emt 0:02:10]} 22. a4 {[%emt 0:05:15]} Nxe5 {[%emt 0:01:11]} 23. Bxe5 {[%emt 0:00:25]} f6 {[%emt 0:00:07]} 24. Bf4 {[%emt 0:01:01]} Kd7 {[%emt 0:11:21]} 25. Ra1 {[%emt 0:04:43]} Bd6 {[%emt 0:00:49]} 26. Bxd6 {[%emt 0:01:19]} Kxd6 {[%emt 0:00:06]} 27. Bd1 {[%emt 0:01:21]} Rb8 {[%emt 0:08:33]} 28. Bc2 {[%emt 0:04:23]} Bxc2 {[%emt 0:04:32]} 29. Kxc2 {[%emt 0:00:02]} e5 {[%emt 0:00:05]} 30. a5 {[%emt 0:03:20]} exd4 {[%emt 0:00:33]} 31. cxd4 {[%emt 0:02:18]} Kc6 {[%emt 0:03:09]} 32. a6 {[%emt 0:04:45]} Kb6 {[%emt 0:01:56]} 33. Kc3 {[%emt 0:02:16]} Ka7 {[%emt 0:00:31]} 34. Ra5 {[%emt 0:01:04]} Rb3+ {[%emt 0:03:22]} 35. Kc2 {[%emt 0:00:05]} Rxf3 {[%emt 0:00:03]} 36. Rxd5 {[%emt 0:00:22]} Kxa6 {[%emt 0:00:06]} 37. Rc5 {[%emt 0:03:29]} Rf4 {[%emt 0:01:55]} 38. Rxc4 {[%emt 0:00:32]} Rxg4 {[%emt 0:00:10]} 39. Kc3 {[%emt 0:00:36]} Rxh4 {[%emt 0:00:21]} 40. Rc7 {[%emt 0:00:00]} Kb5 {[%emt 0:00:00]} 41. Rb7+ {[%emt 0:04:57]} Kc6 {[%emt 0:02:29]} 42. Rxg7 {[%emt 0:00:01]} h5 {[%emt 0:01:11]} 43. Kd3 {[%emt 0:05:41]} Rg4 {[%emt 0:03:13]} 44. Rf7 {[%emt 0:01:54]} Rg6 {[%emt 0:00:23]} 45. Rh7 {[%emt 0:01:03]} Rg5 {[%emt 0:01:49]} 46. Rh6 {[%emt 0:00:11]} Kd5 {[%emt 0:00:32]} 47. Rxf6 {[%emt 0:00:52]} Rg3+ {[%emt 0:00:11]} 48. Ke2 {[%emt 0:00:16]} Kxd4 {[%emt 0:00:09]} 49. Rf5 {[%emt 0:03:02]} Re3+ {[%emt 0:01:51] Kd3+ Kd5+ Kd4+} 1/2-1/2

[Event "46th GRE-chT Premier 2018"]
[Site "Rio Achaia"]
[Date "2018.07.10"]
[Round "1"]
[White "Chatzieleftheriou, Andreas"]
[Black "Sotiropoulos, Anastasios-Theohar"]
[Result "1/2-1/2"]
[ECO "B17"]
[WhiteElo "2012"]
[BlackElo "1834"]
[Annotator "NA"]
[PlyCount "47"]
[EventDate "2018.07.10"]
[EventType "team-tourn"]
[EventCountry "GRE"]
[SourceTitle "playchess.com"]
[Source "ChessBase"]
[SourceQuality "1"]
[TimeControl "40/5400+30:1800+30"]

1. e4 {[%emt 0:00:00]} c6 {[%emt 0:00:00]} 2. d4 {[%emt 0:00:00]} d5 {[%emt 0:00:00]} 3. Nd2 {[%emt 0:00:00]} dxe4 {[%emt 0:00:00]} 4. Nxe4 {[%emt 0:00:00]} Nd7 {[%emt 0:00:00]} 5. Bd3 {[%emt 0:00:29]} Ngf6 {[%emt 0:00:48]} 6. Ng5 {[%emt 0:02:16]} e6 {[%emt 0:00:15]} 7. N1f3 {[%emt 0:01:09]} Bd6 {[%emt 0:00:39]} 8. c3 {[%emt 0:03:32]} h6 {[%emt 0:02:31]} 9. Ne4 {[%emt 0:01:00]} Nxe4 {[%emt 0:00:12]} 10. Bxe4 {[%emt 0:00:14]} Nf6 {[%emt 0:04:43]} 11. Bc2 {[%emt 0:02:44]} Qc7 {[%emt 0:01:54]} 12. h3 {[%emt 0:03:56]} b6 {[%emt 0:00:32]} 13. Qe2 {[%emt 0:12:28]} Bb7 {[%emt 0:00:32]} 14. Ne5 {[%emt 0:11:38]} O-O-O {[%emt 0:13:17]} 15. O-O {[%emt 0:18:29]} c5 {[%emt 0:01:01]} 16. a4 {[%emt 0:15:35]} g5 {[%emt 0:21:29]} 17. Bd3 {[%emt 0:04:21]} Kb8 {[%emt 0:11:24]} 18. a5 {[%emt 0:02:07]} Rdg8 {[%emt 0:04:07]} 19. axb6 {[%emt 0:01:01]} axb6 {[%emt 0:00:02]} 20. Ba6 {[%emt 0:01:42]} Ba8 {[%emt 0:00:23]} 21. Bb5 {[%emt 0:02:20]} Bb7 {[%emt 0:06:58]} 22. Ba6 {[%emt 0:00:25]} Ba8 {[%emt 0:00:31]} 23. Bb5 {[%emt 0:00:02]} Bb7 {[%emt 0:00:15]} 24. Ba6 1/2-1/2

[Event "46th GRE-chT Premier 2018"]
[Site "Rio Achaia"]
[Date "2018.07.10"]
[Round "1"]
[White "Papageorgiou, Ioannis"]
[Black "Milonakis, Georgios"]
[Result "0-1"]
[ECO "C54"]
[WhiteElo "1983"]
[BlackElo "2200"]
[Annotator "NA"]
[PlyCount "98"]
[EventDate "2018.07.10"]
[EventType "team-tourn"]
[EventCountry "GRE"]
[SourceTitle "playchess.com"]
[Source "ChessBase"]
[SourceQuality "1"]
[TimeControl "40/5400+30:1800+30"]

1. e4 {[%emt 0:00:00]} e5 {[%emt 0:00:00]} 2. Nf3 {[%emt 0:00:00]} Nc6 {[%emt 0:00:14]} 3. Bc4 {[%emt 0:00:09]} Bc5 {[%emt 0:00:44]} 4. c3 {[%emt 0:00:38]} Nf6 $11 {[%emt 0:00:14]} 5. d3 {[%emt 0:00:55]} d6 {[%emt 0:01:52]} 6. b4 {[%emt 0:00:44]} Bb6 {[%emt 0:00:10]} 7. a4 {[%emt 0:00:09]} a6 {[%emt 0:02:48]} 8. a5 {[%emt 0:00:24]} Ba7 {[%emt 0:00:05]} 9. O-O {[%emt 0:01:01]} O-O {[%emt 0:02:30]} 10. Nbd2 {[%emt 0:01:47]} h6 {[%emt 0:07:26]} 11. Re1 {[%emt 0:03:05]} Ne7 {[%emt 0:02:38]} 12. Bb3 {[%emt 0:01:48]} Ng6 {[%emt 0:02:06]} 13. Nc4 {[%emt 0:03:13]} Re8 {[%emt 0:03:34]} 14. Be3 {[%emt 0:01:08]} Bxe3 {[%emt 0:00:20]} 15. Nxe3 {[%emt 0:05:49]} c6 {[%emt 0:07:11]} 16. Nc4 {[%emt 0:07:36]} Be6 {[%emt 0:03:16]} 17. Nb6 {[%emt 0:30:46]} Rb8 {[%emt 0:01:37]} 18. Qc2 {[%emt 0:01:37]} Qc7 {[%emt 0:03:27]} 19. h3 {[%emt 0:06:43]} Rbd8 {[%emt 0:00:46]} 20. Bxe6 {[%emt 0:04:04]} Rxe6 {[%emt 0:02:12]} 21. c4 {[%emt 0:03:51]} Nd7 {[%emt 0:10:11]} 22. Na4 {[%emt 0:03:13]} Ndf8 {[%emt 0:01:39]} 23. Rec1 {[%emt 0:01:55]} Rf6 {[%emt 0:05:52]} 24. Nc3 {[%emt 0:05:16]} Rxf3 {[%emt 0:04:39]} 25. gxf3 {[%emt 0:00:08]} Qd7 {[%emt 0:00:32]} 26. Kf1 {[%emt 0:01:24]} Qxh3+ {[%emt 0:01:15]} 27. Ke1 {[%emt 0:01:53]} Ne6 {[%emt 0:01:54]} 28. Ne2 {[%emt 0:03:15]} Qxf3 {[%emt 0:02:43]} 29. Kd2 {[%emt 0:00:27]} d5 {[%emt 0:05:22]} 30. exd5 {[%emt 0:07:11]} cxd5 {[%emt 0:00:09]} 31. c5 {[%emt 0:00:19]} e4 {[%emt 0:04:17]} 32. Rf1 {[%emt 0:01:28]} Ne5 {[%emt 0:01:56]} 33. d4 {[%emt 0:02:05]} Nc4+ {[%emt 0:04:44]} 34. Kc1 {[%emt 0:00:32]} Nf4 {[%emt 0:03:14]} 35. Nxf4 {[%emt 0:01:34]} Qxf4+ {[%emt 0:00:08]} 36. Kb1 {[%emt 0:00:12]} Nd2+ {[%emt 0:00:23]} 37. Kb2 {[%emt 0:00:25]} Nxf1 {[%emt 0:00:10]} 38. Rxf1 {[%emt 0:00:03]} e3 {[%emt 0:02:56]} 39. Qd3 {[%emt 0:01:07]} exf2 {[%emt 0:02:02]} 40. Kc2 {[%emt 0:00:00]} Re8 {[%emt 0:00:00]} 41. Qd2 {[%emt 0:01:38]} Qe4+ {[%emt 0:23:51]} 42. Kb2 {[%emt 0:00:21]} Qe2 {[%emt 0:00:19]} 43. Qxe2 {[%emt 0:03:27]} Rxe2+ {[%emt 0:00:08]} 44. Kb3 {[%emt 0:00:12]} g5 {[%emt 0:04:20]} 45. b5 {[%emt 0:00:06]} axb5 {[%emt 0:00:09]} 46. Rxf2 {[%emt 0:05:27]} Rxf2 {[%emt 0:03:57]} 47. c6 {[%emt 0:00:06]} bxc6 {[%emt 0:00:09]} 48. a6 {[%emt 0:00:04]} Rf3+ {[%emt 0:00:07]} 49. Kb2 {[%emt 0:00:01]} b4 {[%emt 0:00:09]} 0-1

[Event "46th GRE-chT Premier 2018"]
[Site "Rio Achaia"]
[Date "2018.07.10"]
[Round "1"]
[White "Loutragotis, Paraskevas Pantelei"]
[Black "Papadopoulos, Zisis"]
[Result "0-1"]
[ECO "A05"]
[WhiteElo "1980"]
[BlackElo "1834"]
[Annotator "NA"]
[PlyCount "82"]
[EventDate "2018.07.10"]
[EventType "team-tourn"]
[EventCountry "GRE"]
[SourceTitle "playchess.com"]
[Source "ChessBase"]
[SourceQuality "1"]
[TimeControl "40/5400+30:1800+30"]

1. Nf3 {[%emt 0:00:00]} Nf6 {[%emt 0:00:00]} 2. g3 {[%emt 0:00:00]} g6 {[%emt 0:00:00]} 3. Bg2 {[%emt 0:00:00]} Bg7 {[%emt 0:00:02]} 4. d4 {[%emt 0:00:00]} d5 {[%emt 0:00:21]} 5. O-O {[%emt 0:00:00]} c6 {[%emt 0:00:15]} 6. b3 {[%emt 0:00:39]} O-O {[%emt 0:00:35]} 7. Bb2 {[%emt 0:00:04]} Re8 {[%emt 0:05:11]} 8. c4 {[%emt 0:02:52]} Nbd7 {[%emt 0:01:17]} 9. Nc3 {[%emt 0:02:31]} Nb6 {[%emt 0:14:02]} 10. Ne5 {[%emt 0:04:35]} Ng4 {[%emt 0:03:34]} 11. Nxg4 {[%emt 0:05:12]} Bxg4 {[%emt 0:00:07]} 12. c5 {[%emt 0:01:14]} Nd7 {[%emt 0:04:07]} 13. f3 {[%emt 0:00:06]} Be6 {[%emt 0:01:22]} 14. Qd2 {[%emt 0:09:22]} Qa5 {[%emt 0:04:57]} 15. a3 {[%emt 0:03:05]} Rad8 {[%emt 0:00:41]} 16. b4 {[%emt 0:00:07]} Qc7 {[%emt 0:00:26]} 17. a4 {[%emt 0:02:20]} a5 {[%emt 0:04:09]} 18. b5 {[%emt 0:00:14]} b6 {[%emt 0:00:58]} 19. Ba3 {[%emt 0:10:32]} bxc5 {[%emt 0:22:07]} 20. dxc5 {[%emt 0:00:06]} d4 {[%emt 0:07:00]} 21. Ne4 {[%emt 0:00:34]} cxb5 {[%emt 0:04:06]} 22. axb5 {[%emt 0:00:11]} d3 {[%emt 0:01:28]} 23. Rac1 {[%emt 0:08:54]} Ne5 {[%emt 0:01:04]} 24. b6 {[%emt 0:02:06]} Qc6 {[%emt 0:01:17]} 25. Bb2 {[%emt 0:17:23]} Nc4 {[%emt 0:05:15]} 26. Rxc4 {[%emt 0:00:14]} Bxc4 {[%emt 0:00:06]} 27. e3 {[%emt 0:09:04]} Bxb2 {[%emt 0:00:52]} 28. Qxb2 {[%emt 0:00:03]} f5 {[%emt 0:08:08]} 29. Qc3 {[%emt 0:00:30]} Qb5 {[%emt 0:01:42]} 30. Nd2 {[%emt 0:01:38]} Bd5 {[%emt 0:00:39]} 31. e4 {[%emt 0:00:53]} Bc6 {[%emt 0:02:42]} 32. Qe5 {[%emt 0:01:43]} e6 {[%emt 0:00:59]} 33. Rc1 {[%emt 0:04:42]} Qb4 {[%emt 0:00:41]} 34. Qf4 {[%emt 0:01:55]} a4 {[%emt 0:02:26]} 35. Rc4 {[%emt 0:00:49]} Qb2 {[%emt 0:00:31]} 36. exf5 {[%emt 0:04:19]} exf5 {[%emt 0:00:40]} 37. Bf1 {[%emt 0:00:08]} a3 {[%emt 0:01:37]} 38. Rb4 {[%emt 0:00:03]} Qc3 {[%emt 0:00:55]} 39. Rc4 {[%emt 0:00:21]} Qb2 {[%emt 0:00:50]} 40. Rb4 {[%emt 0:00:00]} Qc1 {[%emt 0:00:00]} 41. Rb1 {[%emt 0:01:51]} Qxc5+ {[%emt 0:02:24]} 0-1

[Event "46th GRE-chT Premier 2018"]
[Site "Rio Achaia"]
[Date "2018.07.10"]
[Round "1"]
[White "Boviatsis, Charalampos"]
[Black "Balokas, Dimitrios"]
[Result "0-1"]
[ECO "B44"]
[WhiteElo "1979"]
[BlackElo "2259"]
[Annotator "NA"]
[PlyCount "62"]
[EventDate "2018.07.10"]
[EventType "team-tourn"]
[EventCountry "GRE"]
[SourceTitle "playchess.com"]
[Source "ChessBase"]
[SourceQuality "1"]
[TimeControl "40/5400+30:1800+30"]

1. e4 {[%emt 0:00:00]} c5 {[%emt 0:00:00]} 2. Nf3 {[%emt 0:00:00]} e6 {[%emt 0:00:00]} 3. d4 {[%emt 0:00:13]} cxd4 {[%emt 0:00:06]} 4. Nxd4 {[%emt 0:00:03]} Nc6 {[%emt 0:00:14]} 5. c4 {[%emt 0:04:36]} Nf6 {[%emt 0:01:42]} 6. Nc3 {[%emt 0:00:42]} Bb4 {[%emt 0:02:07]} 7. f3 {[%emt 0:02:41]} O-O {[%emt 0:11:12]} 8. Be3 {[%emt 0:10:01]} d5 {[%emt 0:02:35]} 9. Nxc6 {[%emt 0:08:19]} bxc6 {[%emt 0:00:09]} 10. e5 {[%emt 0:11:16]} Nd7 {[%emt 0:00:38]} 11. f4 {[%emt 0:01:11]} f6 {[%emt 0:09:00]} 12. exf6 {[%emt 0:04:58]} Qxf6 {[%emt 0:00:24]} 13. Qd2 {[%emt 0:00:51]} Nc5 {[%emt 0:03:44]} 14. Bxc5 {[%emt 0:15:11]} Bxc5 {[%emt 0:00:10]} 15. g3 {[%emt 0:00:21]} e5 {[%emt 0:14:09]} 16. O-O-O {[%emt 0:13:47]} exf4 {[%emt 0:02:49]} 17. gxf4 {[%emt 0:02:23]} Bg4 {[%emt 0:02:13]} 18. Be2 {[%emt 0:02:30]} Qe7 {[%emt 0:14:57]} 19. Kb1 {[%emt 0:05:02]} Bxe2 {[%emt 0:04:12]} 20. Rhe1 {[%emt 0:04:41]} d4 {[%emt 0:04:31]} 21. Nxe2 {[%emt 0:02:17]} Bb4 {[%emt 0:00:42]} 22. Nxd4 {[%emt 0:02:52]} Qxe1 {[%emt 0:01:04]} 23. Qxe1 {[%emt 0:00:15]} Bxe1 {[%emt 0:00:06]} 24. Rxe1 {[%emt 0:00:17]} Rxf4 {[%emt 0:01:27]} 25. Nxc6 {[%emt 0:00:25]} Rxc4 {[%emt 0:00:11]} 26. Re6 {[%emt 0:01:31]} a5 {[%emt 0:03:43]} 27. b3 {[%emt 0:01:06]} Rf4 {[%emt 0:01:07]} 28. Re2 {[%emt 0:00:37]} a4 {[%emt 0:01:20]} 29. b4 {[%emt 0:00:34]} Rf1+ {[%emt 0:00:27]} 30. Kb2 {[%emt 0:00:24]} a3+ {[%emt 0:00:53]} 31. Kc3 {[%emt 0:02:24]} Rb1 {[%emt 0:02:46]} 0-1

[Event "46th GRE-chT Premier 2018"]
[Site "Rio Achaia"]
[Date "2018.07.10"]
[Round "1"]
[White "Fragkou, Eleni"]
[Black "Havanecz, Bianka"]
[Result "1/2-1/2"]
[ECO "C45"]
[WhiteElo "1979"]
[BlackElo "2193"]
[Annotator "NA"]
[PlyCount "110"]
[EventDate "2018.07.10"]
[EventType "team-tourn"]
[EventCountry "GRE"]
[SourceTitle "playchess.com"]
[Source "ChessBase"]
[SourceQuality "1"]
[TimeControl "40/5400+30:1800+30"]

1. e4 {[%emt 0:00:00]} e5 {[%emt 0:00:00]} 2. Nf3 {[%emt 0:00:00]} Nc6 {[%emt 0:00:00]} 3. d4 {[%emt 0:00:03]} exd4 {[%emt 0:00:00]} 4. Nxd4 {[%emt 0:00:07]} Bc5 {[%emt 0:00:00]} 5. Be3 {[%emt 0:00:15]} Qf6 {[%emt 0:00:00]} 6. c3 {[%emt 0:00:17]} Nge7 {[%emt 0:00:11]} 7. Bb5 {[%emt 0:01:34]} O-O {[%emt 0:07:57]} 8. O-O {[%emt 0:00:19]} d6 {[%emt 0:02:06]} 9. a4 {[%emt 0:28:54]} Qg6 {[%emt 0:02:00]} 10. Bxc6 {[%emt 0:12:13]} bxc6 {[%emt 0:00:33]} 11. b4 {[%emt 0:11:20]} Bxd4 {[%emt 0:00:41]} 12. Bxd4 {[%emt 0:00:19]} a5 {[%emt 0:01:16]} 13. Nd2 {[%emt 0:05:06]} f5 {[%emt 0:01:50]} 14. Re1 {[%emt 0:08:15]} Rb8 {[%emt 0:08:10]} 15. e5 {[%emt 0:23:20]} Nd5 {[%emt 0:02:22]} 16. exd6 {[%emt 0:01:51]} cxd6 {[%emt 0:00:06]} 17. b5 {[%emt 0:00:11]} c5 {[%emt 0:01:11]} 18. Qb3 {[%emt 0:01:00]} Bb7 {[%emt 0:00:10]} 19. Re7 {[%emt 0:01:42]} cxd4 {[%emt 0:01:56]} 20. Rxb7 {[%emt 0:00:18]} Rxb7 {[%emt 0:00:07]} 21. Qxd5+ {[%emt 0:00:07]} Qf7 {[%emt 0:01:25]} 22. Qxf7+ {[%emt 0:02:51]} Kxf7 {[%emt 0:00:23]} 23. cxd4 {[%emt 0:00:10]} Rc8 {[%emt 0:00:37]} 24. Nb3 {[%emt 0:00:59]} Ra7 {[%emt 0:00:35]} 25. g3 {[%emt 0:00:43]} Ke6 {[%emt 0:01:50]} 26. d5+ {[%emt 0:00:33]} Kxd5 {[%emt 0:02:25]} 27. Rd1+ {[%emt 0:00:11]} Ke6 {[%emt 0:04:06]} 28. Nd4+ {[%emt 0:00:06]} Kf6 {[%emt 0:00:05]} 29. Nc6 {[%emt 0:00:30]} Rd7 {[%emt 0:05:47]} 30. Nxa5 {[%emt 0:00:06]} Ra8 {[%emt 0:00:06]} 31. Nc4 {[%emt 0:00:08]} Rxa4 {[%emt 0:01:17]} 32. Nb6 {[%emt 0:00:09]} Raa7 {[%emt 0:00:04]} 33. Nxd7+ {[%emt 0:00:05]} Rxd7 {[%emt 0:00:03]} 34. Kg2 {[%emt 0:02:37]} Ke6 {[%emt 0:00:13]} 35. Kf3 {[%emt 0:00:23]} Rb7 {[%emt 0:00:06]} 36. Rb1 {[%emt 0:00:23]} Ke5 {[%emt 0:02:11]} 37. h4 {[%emt 0:00:33]} g6 {[%emt 0:02:24]} 38. b6 {[%emt 0:00:33]} Kd4 {[%emt 0:05:39]} 39. h5 {[%emt 0:00:32]} g5 {[%emt 0:06:45]} 40. g4 {[%emt 0:00:00]} f4 {[%emt 0:00:00]} 41. Rd1+ {[%emt 0:14:18]} Ke5 {[%emt 0:02:46]} 42. Re1+ {[%emt 0:03:27]} Kd5 {[%emt 0:01:23]} 43. Rc1 {[%emt 0:09:11]} Rxb6 {[%emt 0:01:54]} 44. Rc7 {[%emt 0:00:05]} Rb3+ {[%emt 0:00:10]} 45. Kg2 {[%emt 0:00:07]} Ke4 {[%emt 0:05:09]} 46. Rxh7 {[%emt 0:00:16]} d5 {[%emt 0:00:11]} 47. Re7+ {[%emt 0:02:51]} Kd3 {[%emt 0:00:16]} 48. Rd7 {[%emt 0:04:02]} d4 {[%emt 0:00:15]} 49. h6 {[%emt 0:00:51]} Rb6 {[%emt 0:00:42]} 50. h7 {[%emt 0:00:30]} Rh6 {[%emt 0:00:04]} 51. Kf3 {[%emt 0:00:23]} Rh3+ {[%emt 0:03:41]} 52. Kg2 {[%emt 0:00:05]} Rh4 {[%emt 0:00:19]} 53. Kf3 {[%emt 0:00:05]} Rh3+ {[%emt 0:00:42]} 54. Kg2 {[%emt 0:00:04]} Rh4 {[%emt 0:00:24]} 55. Kf3 {[%emt 0:00:03]} Rh3+ {[%emt 0:00:18] Ke4+} 1/2-1/2

[Event "46th GRE-chT Premier 2018"]
[Site "Rio Achaia"]
[Date "2018.07.10"]
[Round "1"]
[White "Vatkali, Dimitra"]
[Black "Videnova, Iva"]
[Result "0-1"]
[ECO "E61"]
[WhiteElo "1979"]
[BlackElo "2369"]
[Annotator "NA"]
[PlyCount "67"]
[EventDate "2018.07.10"]
[EventType "team-tourn"]
[EventCountry "GRE"]
[SourceTitle "playchess.com"]
[Source "ChessBase"]
[SourceQuality "1"]
[TimeControl "40/5400+30:1800+30"]

1. d4 {[%emt 0:00:00]} Nf6 {[%emt 0:00:00]} 2. c4 {[%emt 0:00:00]} g6 {[%emt 0:00:00]} 3. Nc3 {[%emt 0:00:00]} c5 {[%emt 0:00:00]} 4. d5 {[%emt 0:06:42]} d6 {[%emt 0:00:32]} 5. e4 {[%emt 0:00:29]} Bg7 {[%emt 0:00:07]} 6. Bd3 {[%emt 0:02:16]} O-O {[%emt 0:00:21]} 7. Nge2 {[%emt 0:04:12]} e6 {[%emt 0:00:51]} 8. O-O {[%emt 0:02:40]} Na6 {[%emt 0:15:52]} 9. h3 {[%emt 0:09:45]} Nc7 {[%emt 0:00:49]} 10. Be3 {[%emt 0:12:20]} exd5 {[%emt 0:01:28]} 11. exd5 {[%emt 0:02:17]} b5 {[%emt 0:02:51]} 12. Bg5 {[%emt 0:01:34]} bxc4 {[%emt 0:01:50]} 13. Bxc4 {[%emt 0:00:16]} h6 {[%emt 0:01:02]} 14. Be3 {[%emt 0:01:42]} Rb8 {[%emt 0:08:14]} 15. Qd2 {[%emt 0:05:56]} Kh7 {[%emt 0:00:29]} 16. Ng3 {[%emt 0:02:47]} Re8 {[%emt 0:01:41]} 17. Rac1 {[%emt 0:10:52]} Nd7 {[%emt 0:02:37]} 18. b3 {[%emt 0:01:27]} Ne5 {[%emt 0:02:53]} 19. Be2 {[%emt 0:01:09]} f5 {[%emt 0:01:13]} 20. Kh1 {[%emt 0:04:34]} Qh4 {[%emt 0:06:23]} 21. f4 {[%emt 0:18:57]} Ng4 {[%emt 0:04:42]} 22. Bxg4 {[%emt 0:08:13]} fxg4 {[%emt 0:00:19]} 23. Nge4 {[%emt 0:00:14]} gxh3 {[%emt 0:05:25]} 24. g3 {[%emt 0:01:06]} Qe7 {[%emt 0:01:18]} 25. Rfe1 {[%emt 0:00:18]} Nxd5 {[%emt 0:03:22]} 26. Bxc5 {[%emt 0:01:32]} Nxc3 {[%emt 0:21:08]} 27. Ng5+ {[%emt 0:01:09]} hxg5 {[%emt 0:00:35]} 28. Rxe7 {[%emt 0:00:04]} Rxe7 {[%emt 0:00:13]} 29. Qxd6 {[%emt 0:00:56]} Re2 {[%emt 0:07:44]} 30. Qxb8 {[%emt 0:00:31]} Bf5 {[%emt 0:00:50]} 31. Qb7 {[%emt 0:00:52]} Be4+ {[%emt 0:00:13]} 32. Qxe4 {[%emt 0:00:03]} Nxe4 {[%emt 0:00:15]} 33. Bxa7 {[%emt 0:00:50]} Nxg3+ {[%emt 0:00:10]} 34. Kg1 {[%emt 0:00:05]} 0-1